Cogmind - Beta 9.4 @@@ ROGUE MODE // 2020.01.21 @ 03:14:59 // Winter2019/RPGLIKE Player: K.Ioz Result: Destroyed by P-60 Hacker with Shock Rifle Performance ------------- Evolutions (3) 1500 Regions Visited (6) 1200 Robots Destroyed (50) 250 Value Destroyed (1114) 1114 Prototype IDs (4) 80 Alien Tech Used (0) 0 Bonus (0) 0 TOTAL SCORE: 4144 Bonus ------- None Cogmind --------- Core Integrity 0/600 Matter 144/300 Energy 259/320 System Corruption 0% Temperature Cool (76) Movement Flying (32) Location -7/Factory Parts ------- > --- POWER (2) -------- Heavy Ion Engine Light Deuterium Engine > --- PROPULSION (3) --- Flight Unit Flight Unit Improved Flight Unit > --- UTILITY (5) ------ Enhanced Optical Array Improved Sensor Array Improved Terrain Scanner Advanced Targeting Computer Improved Shield Generator > --- WEAPON (2) ------- Assault Rifle Light Assault Rifle > --- INVENTORY (2) ---- Flight Unit Improved ECM Suite Peak State ------------ > --- POWER ------------ Heavy Ion Engine Light Deuterium Engine > --- PROPULSION ------- Flight Unit Flight Unit Improved Flight Unit > --- UTILITY ---------- Advanced Visual Processing Unit Advanced Terrain Scan Processor Advanced Targeting Computer Improved Shield Generator High-powered Tractor Beam > --- WEAPON ----------- Assault Rifle Light Assault Rifle > --- INVENTORY -------- Flight Unit Improved ECM Suite [Rating: 29] Favorites ----------- Power Light Ion Engine Engine Light Ion Engine Power Core Light Nuclear Core Propulsion Flight Unit Leg Aluminum Leg Flight Unit Flight Unit Utility Sensor Array Device Sensor Array Processor Advanced Targeting Computer Protection Power Shielding Weapon Assault Rifle Energy Gun Small Laser Ballistic Gun Assault Rifle Launcher Rocket Launcher Build | -11 -10 -10 -10 -9 -8 -7 ------- Run | Scr Mat Min Exi Min Mat Fac Slots Evolved 8 | . 2 2 . 1 1 2 Power 1 | . . . . . . 1 Propulsion 2 | . 1 . . 1 . . Utility 4 | . . 2 . . 1 1 Weapon 1 | . 1 . . . . . Parts Attached 36 | 3 7 5 . 7 5 9 Power 7 | 1 1 . . 3 1 1 Engine 6 | 1 1 . . 2 1 1 Core 1 | . . . . 1 . . Reactor . | . . . . . . . Propulsion 7 | 1 2 1 . 2 1 . Treads . | . . . . . . . Leg 1 | 1 . . . . . . Wheel . | . . . . . . . Hover . | . . . . . . . Flight 6 | . 2 1 . 2 1 . Utility 16 | . 2 4 . . 2 8 Device 10 | . 1 2 . . 1 6 Storage . | . . . . . . . Processor 5 | . . 2 . . 1 2 Hackware . | . . . . . . . Protection 1 | . 1 . . . . . Artifact . | . . . . . . . Weapon 6 | 1 2 . . 2 1 . Energy Gun 3 | . 2 . . 1 . . Energy Cannon . | . . . . . . . Ballistic Gun 2 | 1 . . . . 1 . Ballistic Cannon . | . . . . . . . Launcher 1 | . . . . 1 . . Special Weapon . | . . . . . . . Impact Weapon . | . . . . . . . Slashing Weapon . | . . . . . . . Piercing Weapon . | . . . . . . . Special Melee Weapon . | . . . . . . . Unidentified Prototypes 2 | . . . . . 2 . Parts Lost . | . . . . . . . Power . | . . . . . . . Propulsion . | . . . . . . . Utility . | . . . . . . . Weapon . | . . . . . . . Highest Loss Streak . | . . . . . . . Average Slot Usage (%) 98 | . 94 100 100 100 100 100 Engine 12 | . 17 14 12 7 10 15 Leg 1 | . 3 . . . . . Flight 29 | . 28 29 25 32 30 25 Device 17 | . 10 15 25 22 20 22 Processor 8 | . . 9 12 11 19 18 Energy Gun 10 | . 14 14 12 9 . . Ballistic Gun 15 | . 17 14 12 11 19 16 Naked Turns . | . . . . . . . Heaviest Build 22 | 5 8 8 8 18 18 22 Greatest Support 24 | 10 10 8 8 17 19 24 Greatest Overweight (x) 2 | . 2 . . 1 1 1 Average Overweight (x) . | . . . . . . . Largest Inventory Capacity 2 | 1 1 1 1 1 2 2 Average Capacity 1 | . 1 1 1 1 1 2 Most Carried 2 | 1 1 1 1 1 2 2 Average Carried 1 | . . 1 1 1 1 2 Final Capacity 2 | 1 1 1 1 1 2 2 Final Carried 2 | 1 1 1 1 1 2 2 Class Distribution -------------------- 48% | Mutant 40% | Scavenger-Scout 5% | Scout Dominant Class ---------------- Mutant | -10/Materials Mutant | -10/Mines Scavenger-Scout | -10/Exiles Scavenger-Scout | -9/Mines Scavenger-Scout | -8/Materials Scout | -7/Factory Resources | -11 -10 -10 -10 -9 -8 -7 ----------- Run | Scr Mat Min Exi Min Mat Fac Matter Collected 977 | 230 253 132 . 238 70 54 Remotely 37 | . . . . . . 37 Salvage Created 1293 | . 330 130 . 646 150 37 Parts 84 | . 31 16 . 28 8 1 Haulers Intercepted . | . . . . . . . Recyclers Shooed . | . . . . . . . Parts Field Recycled . | . . . . . . . Retrieved Matter . | . . . . . . . Parts Self-Destructed . | . . . . . . . Prevented . | . . . . . . . Kills | -11 -10 -10 -10 -9 -8 -7 ------- Run | Scr Mat Min Exi Min Mat Fac Combat Hostiles Destroyed 45 | . 15 7 . 18 5 . Guns 43 | . 13 7 . 18 5 . AOE 2 | . 2 . . . . . Classes Destroyed 7 | . 4 . . 3 . . Tunneler 1 | . 1 . . . . . Watcher 4 | . 2 . . . 1 1 Swarmer 19 | . 6 6 . 3 4 . Grunt 20 | . 9 1 . 9 1 . Brawler 1 | . . . . 1 . . Duelist 1 | . . . . 1 . . Assembled 4 | . . . . 4 . . Best Kill Streak 4 | . 3 3 . 3 4 1 Combat Bots Only 4 | . 3 3 . 3 4 . Max Kills in Single Turn 2 | . 2 1 . 1 2 1 Gunslinging 1 | . . . . . 1 . Exploded 2 | . 2 . . . . . Melee . | . . . . . . . Uniques/NPCs Destroyed . | . . . . . . . Combat | -11 -10 -10 -10 -9 -8 -7 -------- Run | Scr Mat Min Exi Min Mat Fac Damage Taken 1455 | . 383 169 . 448 165 290 Core 1188 | . 317 133 . 366 136 236 Absorbed by Shields . | . . . . . . . Redirected to Core 898 | . 217 110 . 279 87 205 Core Remaining (%) 64 | 100 . . . 54 38 . Volleys Fired 180 | . 69 20 . 56 23 12 Largest 2 | . 2 2 . 2 2 2 Hottest 60 | . 60 60 . 60 40 40 Shots Fired 331 | . 119 35 . 107 46 24 Gun 331 | . 119 35 . 107 46 24 Cannon . | . . . . . . . Launcher . | . . . . . . . Special . | . . . . . . . Kinetic 215 | . 69 20 . 56 46 24 Thermal 70 | . 4 15 . 51 . . Explosive . | . . . . . . . Electromagnetic 46 | . 46 . . . . . Robot Hit Streak 17 | . 8 5 . 17 10 6 Robot Miss Streak 5 | . 4 4 . 2 5 2 Penetration Max . | . . . . . . . Secondary Targets 7 | . 1 1 . 3 2 . Max Gunslinging Chain 1 | . 1 1 . 1 1 . Shots Hit Robots 197 | . 61 18 . 77 27 14 Core Hits 88 | . 28 8 . 35 12 5 Critical Hits 2 | . . . . 1 . 1 Critical Kills 1 | . . . . . . 1 Critical Parts Destroyed 1 | . . . . 1 . . Melee Attacks . | . . . . . . . Impact . | . . . . . . . Slashing . | . . . . . . . Piercing . | . . . . . . . Sneak Attacks . | . . . . . . . Combat Hostiles . | . . . . . . . Follow-up Attacks . | . . . . . . . Damage Inflicted 2582 | . 934 231 . 960 326 131 Guns 2383 | . 735 231 . 960 326 131 Cannons . | . . . . . . . Explosions 196 | . 196 . . . . . Melee . | . . . . . . . Ramming 3 | . 3 . . . . . Kinetic 1749 | . 490 185 . 617 326 131 Thermal 389 | . . 46 . 343 . . Explosive 196 | . 196 . . . . . Electromagnetic 245 | . 245 . . . . . Impact . | . . . . . . . Slashing . | . . . . . . . Piercing . | . . . . . . . Highest Corruption . | . . . . . . . Average Corruption . | . . . . . . . Corruption Purged . | . . . . . . . Overload Shots . | . . . . . . . Overflow Damage 10 | . 10 . . . . . Projectiles . | . . . . . . . Explosions 10 | . 10 . . . . . Melee . | . . . . . . . Knockbacks . | . . . . . . . Impact . | . . . . . . . Kinetic . | . . . . . . . Secondary . | . . . . . . . Self-Inflicted Damage 76 | . 76 . . . . . Shots 1 | . 1 . . . . . Rammed 1 | . 1 . . . . . Targets Rammed 1 | . 1 . . . . . Kicked . | . . . . . . . Crushed . | . . . . . . . Highest Temperature 168 | . 60 36 . 168 33 68 Average Temperature 36 | . 17 16 . 67 10 18 Received Heat Transfer 378 | . 111 18 . 186 27 36 Siege Activations . | . . . . . . . Robots Corrupted . | . . . . . . . Combat Hostiles . | . . . . . . . Parts Fried 1 | . 1 . . . . . Impact Corruptions . | . . . . . . . Robots Melted . | . . . . . . . Combat Hostiles . | . . . . . . . Parts Melted 1 | . . 1 . . . . Heat Transferred 875 | . . 100 . 775 . . Parts Sabotaged . | . . . . . . . Parts Stolen . | . . . . . . . Parts Stripped . | . . . . . . . Power Chain Reactions . | . . . . . . . Missiles Intercepted . | . . . . . . . Alert | -11 -10 -10 -10 -9 -8 -7 ------- Run | Scr Mat Min Exi Min Mat Fac Peak Influence 228 | . 210 228 . 215 123 120 Average Influence 100 | . 92 199 . 109 41 77 Maximum Alert Level 1 | . 1 1 . 1 . . Low Security (%) 85 | 100 94 15 . 91 100 100 Level 1 14 | . 5 84 . 8 . . Level 2 . | . . . . . . . Level 3 . | . . . . . . . Level 4 . | . . . . . . . Level 5 . | . . . . . . . High Security . | . . . . . . . Max Security . | . . . . . . . Squads Dispatched 9 | . 5 1 . . 1 2 Investigation 2 | . 1 1 . . . . Extermination 1 | . . . . . . 1 Reinforcement 6 | . 4 . . . 1 1 Assault . | . . . . . . . Garrison . | . . . . . . . Intercept . | . . . . . . . Construction Impeded . | . . . . . . . Haulers Reinforced . | . . . . . . . Stealth | -11 -10 -10 -10 -9 -8 -7 --------- Run | Scr Mat Min Exi Min Mat Fac Distress Signals 9 | . 6 . . . 3 . Communications Jammed . | . . . . . . . Distress Signals . | . . . . . . . Times Spotted 97 | . 47 10 . 17 14 9 Peak Tracking Total 7 | . 7 3 . 3 7 4 Tactical Retreats 11 | . 7 1 . . 2 1 Traps | -11 -10 -10 -10 -9 -8 -7 ------- Run | Scr Mat Min Exi Min Mat Fac Traps Triggered 2 | . 1 . . . . 1 Indirectly . | . . . . . . . Trap Hack Attempts . | . . . . . . . Triggered . | . . . . . . . Disarmed . | . . . . . . . Reprogrammed 1 | . . . . . . 1 Reused . | . . . . . . . Traps Extracted . | . . . . . . . Installed . | . . . . . . . Triggered . | . . . . . . . Machines | -11 -10 -10 -10 -9 -8 -7 ---------- Run | Scr Mat Min Exi Min Mat Fac Machines Disabled 2 | . 2 . . . . . Max in Single Turn 2 | . 2 . . . . . Garrison Access 1 | . . . . . 1 . Machines Sabotaged . | . . . . . . . Garrisons Compromised . | . . . . . . . Overloaded Fab Kills . | . . . . . . . Fab Network Shutdowns . | . . . . . . . Hacking | -11 -10 -10 -10 -9 -8 -7 --------- Run | Scr Mat Min Exi Min Mat Fac Machines Accessed 22 | . 7 2 4 . 4 5 Terminals 14 | . 6 1 . . 3 4 Fabricators . | . . . . . . . Repair Stations . | . . . . . . . Recycling Units 1 | . 1 . . . . . Scanalyzers . | . . . . . . . Garrison Access 2 | . . . . . 1 1 Total Hacks 101 | . 20 3 48 . 18 12 Successful 71 | . 8 1 48 . 11 3 Failed 30 | . 12 2 . . 7 9 Catastrophic 5 | . 2 1 . . 1 1 Database Lockouts . | . . . . . . . Manual 27 | . 14 . . . 9 4 Terminals 46 | . 18 2 . . 15 11 Fabricators . | . . . . . . . Repair Stations . | . . . . . . . Recycling Units 2 | . 2 . . . . . Scanalyzers . | . . . . . . . Garrison Access 4 | . . . . . 3 1 Terminal Hacks 68 | . 6 1 48 . 10 3 Record 49 | . . . 48 . 1 . Prototype ID Bank 1 | . . . . . 1 . Open Door 1 | . . 1 . . . . Level Access Points 1 | . . . . . 1 . Unreport Threat 4 | . 2 . . . 2 . Locate Traps 6 | . 2 . . . 3 1 Reprogram Traps 1 | . . . . . . 1 Security Status 2 | . 1 . . . . 1 Assault Status 1 | . 1 . . . . . Hauler Manifests 1 | . . . . . 1 . Zone Layout 1 | . . . . . 1 . Fabricator Hacks . | . . . . . . . Repair Station Hacks . | . . . . . . . Recycling Unit Hacks 2 | . 2 . . . . . Process 1 | . 1 . . . . . Report Inventory 1 | . 1 . . . . . Scanalyzer . | . . . . . . . Garrison Access Hacks 1 | . . . . . 1 . Seal Access 1 | . . . . . 1 . Unauthorized Hacks . | . . . . . . . Terminals . | . . . . . . . Fabricators . | . . . . . . . Repair Stations . | . . . . . . . Recycling Units . | . . . . . . . Scanalyzers . | . . . . . . . Garrison Access . | . . . . . . . Data Cores Recovered . | . . . . . . . Used . | . . . . . . . Hacking Detections 16 | . 6 1 . . 4 5 Full Trace Events 2 | . 2 . . . . . Feedback Events . | . . . . . . . Feedback Blocked . | . . . . . . . Robot Schematics Acquired . | . . . . . . . Robots Built . | . . . . . . . Matter . | . . . . . . . Time . | . . . . . . . Total Robot Build Rating . | . . . . . . . Part Schematics Acquired . | . . . . . . . Parts Built . | . . . . . . . Matter . | . . . . . . . Time . | . . . . . . . Total Part Build Rating . | . . . . . . . Parts Repaired . | . . . . . . . Time . | . . . . . . . Parts Recycled . | . . . . . . . Recycled Matter 6 | . 6 . . . . . Retrieved Matter . | . . . . . . . Retrieved Components . | . . . . . . . Parts Scanalyzed . | . . . . . . . Part Schematics Acquired . | . . . . . . . Parts Damaged . | . . . . . . . Bothacking | -11 -10 -10 -10 -9 -8 -7 ------------ Run | Scr Mat Min Exi Min Mat Fac Used RIF Installer . | . . . . . . . Robots Hacked . | . . . . . . . Non-combat . | . . . . . . . Combat . | . . . . . . . Robot Hacks Applied . | . . . . . . . Relay Couplers Released . | . . . . . . . Robots Rewired . | . . . . . . . Allies Hacked . | . . . . . . . Hacks Repelled . | . . . . . . . Allies | -11 -10 -10 -10 -9 -8 -7 -------- Run | Scr Mat Min Exi Min Mat Fac Total Allies 3 | . . . . 3 . . Largest Group 3 | . . . . 3 . . Highest-Rated Group 40 | . . . . 40 . . Highest-Rated Ally 16 | . . . . 16 . . Total Orders . | . . . . . . . Ally Attacks 1 | . . . . 1 . . Total Damage 17 | . . . . 17 . . Kills . | . . . . . . . Allies Corrupted 1 | . . . . 1 . . Allies Melted . | . . . . . . . Intel | -11 -10 -10 -10 -9 -8 -7 ------- Run | Scr Mat Min Exi Min Mat Fac Robot Analysis Total . | . . . . . . . Derelict Logs Recovered 3 | . . 2 . 1 . . Drone Launches . | . . . . . . . Drone Recoveries . | . . . . . . . Exploration | -11 -10 -10 -10 -9 -8 -7 ------------- Run | Scr Mat Min Exi Min Mat Fac Turns Passed 2975 | 82 1017 337 198 769 297 275 Spaces Moved 4398 | 76 1279 633 536 876 392 606 Core 21 | 20 1 . . . . . Treads . | . . . . . . . Legs 139 | 56 83 . . . . . Wheels . | . . . . . . . Hover . | . . . . . . . Flight 4238 | . 1195 633 536 876 392 606 Fastest Speed 32 | 50 37 37 37 34 32 32 Average Speed 39 | 101 42 37 37 40 35 34 Slowest Speed 150 | 120 150 37 37 114 114 108 Overloaded Moves . | . . . . . . . Propulsion Burnouts . | . . . . . . . Robots Hopped 33 | . 8 6 2 13 3 1 Cave-ins Triggered . | . . . . . . . Exploration Rate (%) 60 | 4 95 89 95 86 37 18 Regions Visited 6 Branch Regions 3 Pre-discovered Areas 3 | . . 2 1 . . . Known Exits Taken 1 | . . . . . 1 . Unknown Exits Taken 5 | 1 1 1 1 1 . . Scrap Searched 3 | . . 2 . 1 . . Spaces Dug . | . . . . . . . Terrain Destroyed 30 | . 30 . . . . . Melee . | . . . . . . . Projectile . | . . . . . . . AOE 30 | . 30 . . . . . Actions | -11 -10 -10 -10 -9 -8 -7 --------- Run | Scr Mat Min Exi Min Mat Fac Total 5255 | 79 1623 694 533 1172 505 649 Wait 618 | . 255 31 . 235 80 17 Move 4328 | 75 1262 620 531 851 385 604 Hop 31 | . 8 6 2 11 3 1 Pick Up 5 | 1 1 1 . . 1 1 Fast Attach 29 | 3 6 4 . 5 5 6 Attach 1 | . 1 . . . . . Detach 4 | . . 1 . . 1 2 Swap 6 | . . 1 . 2 . 3 Drop 20 | . 4 3 . 6 4 3 Fire 180 | . 69 20 . 56 23 12 Melee . | . . . . . . . Ram . | . . . . . . . Kick 1 | . 1 . . . . . Crush . | . . . . . . . Escape Stasis . | . . . . . . . Rewire . | . . . . . . . Trap . | . . . . . . . Miscellaneous 32 | . 16 7 . 6 3 . Route ------- -11/Scrapyard -10/Materials (discovered 4 exits: [*Mat x2] / *Min x2) -10/Mines (discovered 3 exits: [*Mat x2] / *Exi) -10/Exiles (discovered 2 exits: [*Min x2]) -9/Mines -8/Materials (discovered 3 exits: *Fac x3) -7/Factory History --------- Turn | Location | Event 11 | -11/Scrapyard | Discovered new exit (range 14) 83 | -11/Scrapyard | Entered Materials 185 | -10/Materials | Upgraded with Weapon slot (x1) 213 | -10/Materials | Upgraded with Propulsion slot (x1) 312 | -10/Materials | Build established: Mutant 343 | -10/Materials | Discovered new exit (range 13) 419 | -10/Materials | Discovered new exit (range 8) 574 | -10/Materials | Reached level 2 601 | -10/Materials | Discovered new exit (range 8) 1081 | -10/Materials | Discovered new exit (range 14) 1100 | -10/Materials | Entered Mines 1136 | -10/Mines | Reached level 3 1169 | -10/Mines | Deemed a non-threat by the Exiles lab entrance 1170 | -10/Mines | Discovered new exit (range 5) 1184 | -10/Mines | Learned location of Zion (-6) 1184 | -10/Mines | Discovered new exit (range 11) 1203 | -10/Mines | Learned Materials security intel 1204 | -10/Mines | Upgraded with Utility slot (x1) 1248 | -10/Mines | Learned location of Storage (-8) 1284 | -10/Mines | Discovered new exit (range 7) 1335 | -10/Mines | Met a Derelict shopkeep closing up shop 1414 | -10/Mines | Upgraded with Utility slot (x1) 1437 | -10/Mines | Entered Exiles 1437 | -10/Exiles | Found Exiles lab destroyed 1442 | -10/Exiles | Discovered new exit (range 16) 1527 | -10/Exiles | Discovered new exit (range 10) 1635 | -10/Exiles | Entered Mines 1643 | -9/Mines | Received a Rocket Launcher from a helpful Derelict 1703 | -9/Mines | Reached level 4 1712 | -9/Mines | Upgraded with Propulsion slot (x1) 1737 | -9/Mines | Build established: Scavenger-Scout 1758 | -9/Mines | Learned Materials emergency access door positions 1884 | -9/Mines | Assisted by bots powering up and referring to "LRC-V3" 1908 | -9/Mines | Assembled infested the area 2396 | -9/Mines | Discovered new exit (range 8) 2404 | -9/Mines | Entered Materials 2406 | -8/Materials | Reached level 5 2410 | -8/Materials | Upgraded with Utility slot (x1) 2472 | -8/Materials | Core integrity fell below 50% 2481 | -8/Materials | Reached level 6 2664 | -8/Materials | Identified exit to Factory 2701 | -8/Materials | Entered Factory 2702 | -7/Factory | Core integrity fell below 50% 2703 | -7/Factory | Reached level 7 2740 | -7/Factory | Upgraded with Power slot (x1) 2749 | -7/Factory | Upgraded with Utility slot (x1) 2843 | -7/Factory | Core integrity fell below 20% 2976 | -7/Factory | Destroyed by P-60 Hacker with Shock Rifle Last Messages --------------- 02842_ Terminal disabled. 02842_ Power Conduit explodes. 02842_ Pressure Siphon disabled. 02845_ K-01 Serf collects debris. 02846_ Acquired 3 matter. 02847_ Acquired 1 matter. 02847_ Acquired 3 matter. 02848_ Acquired 1 matter. 02848_ K-01 Serf collects debris. 02873_ Discarded Adv. Terrain Scan Processor. 02874_ Acquired Imp. Sensor Array. 02901_ Discarded Adv. Visual Processing Unit. 02902_ Acquired Enh. Optical Array. 02909_ O-16 Technician: "IFF HANDSHAKE FAILED. SECURING TERMINAL." 02914_ O-16 Technician uses terminal to summon reinforcements. 02914_ ALERT: Hostiles spotted, dispatching reinforcements to Terminal F002. 02914_ O-16 Technician locks terminal. 02934_ Connecting with Terminal... 02951_ ALERT: Rogue bot located, Programmers report to Factory Zone 7U. Map ----- +----------------------------------------------------+ | ??????????????????????????# !# """ | | ###?????????????########### # "T" | | ????????????# ## + | | ???????????# ## ! # | | ] ??????????# ## # """" " | | ! ?????????+ ## # """" " | | ????????# ############### """" " | | ???????# #???# """" " | | ? ??????# #???# """" " | | ?"" """ ####?# ?????# """" " | | """ """ ? ???????# | | """ """ ###+########## | | ? | | """ !! ? | | """ !! ## | | """ !! # | | ########### # | | ###+##################### # | | ### # #???# # ? # | | ??# ?# #???# """ + # | | ??# !! " ?# #???# "T" "" # # | | ??# !! "??# #???# "" # # | | !! "??# #???# """ # ## | | ???# g #???# """ # | | ????# gp #???# """ # | | """ ] ????# g !@#???# # | | """ ?????#+#########???########### | | ??""" ??????????#??????????????????# | | ?? ??????????????????????????????####+### | | ??""" ???????????????????????#??????????????? | | ??""" ?????????????????????#???? ???????????? | | ???""????????????????????????????#?????????????? | | ???????????????????????????????????????????????? | | ???????????????????????????????????????????????? | | ??????????????????????????????????? ???????????? | | ????????????????????????????????????????????????## | | ?????????????????????????????????????????????????? | | ?????????????????? ?? ??????????????????????????? | | ???????????????????#?????????????????????????????? | | ???????????????????????? ????????????????????????? | | ?????????????????????????????#???????????????????? | | ?????????????????????????????????????????????????? | | ?????????????????????????????????????????????????? | | ?????????????????????????????????????????????????? | | ?????????????????????????????????????????????????? | | ?????????????????????????????????????????????????? | | ?????????????????????????????????????????????????? | | ?????????????????????????????????????????????????? | | ?????????????????????????????????????????????????? | | ?????????????????????????????????????????????????? | +----------------------------------------------------+ Best States ------------- Heat Dissipation 25 Energy Generation 23 Energy Capacity 320 Matter Stores 300 Matter Capacity 300 Sight Range 27 Robot Scan Range 21 Terrain Scan Range 16 Terrain Scan Density 210 ECM Strength 2 Power Shielding 33 Evasion (%) 63 Targeting Accuracy 8 Defensive Hacking 10 Item Schematics ----------------- None Robot Schematics ------------------ None Fabricated ------------ Nothing Alien Tech Used ----------------- None Achievements -------------- None Challenges ------------ None RPGLIKE | -11 -10 -10 -10 -9 -8 -7 --------- Run | Scr Mat Min Exi Min Mat Fac Levels Raised 6 | . 1 1 . 1 2 1 XP Earned 12455 | 3000 2105 1300 200 2150 2085 1615 XP Spent 11100 | 250 3850 1300 . 900 2300 2500 Upgrades 23 | 1 11 2 . 2 4 3 Power Slot 1 | . . . . . . 1 Propulsion Slot 2 | . 1 . . 1 . . Utility Slot 4 | . . 2 . . 1 1 Weapon Slot 1 | . 1 . . . . . Mass Support 2 | . . . . 1 . 1 Inventory Capacity 2 | 1 . . . . 1 . Sight Range 5 | . 5 . . . . . Sensor Range 4 | . 4 . . . . . Hack Defense % 2 | . . . . . 2 . Protomatter Created 371 | . 227 26 . 104 14 . Integrity Restored 602 | . 293 138 . 129 42 . Core 582 | . 273 138 . 129 42 . Parts 20 | . 20 . . . . . Protomatter Decayed 255 | . 126 13 . 116 . . Game ------ Seed KineticTacticalDeconstructor Manual? 0 Play Time 01:01:28 Cumulative 87.7 hours Start 2020.01.21 @ 02:13:06 End 2020.01.21 @ 03:14:59 Sessions 1 Manual Loads 0 Difficulty Rogue Special Mode Winter2019/RPGLIKE Game No. 67 Rogue 55 Adventurer 0 Explorer 12 Win Type - Total 1 Types 1/0/0/0/0/0/0 Lore% 44 Gallery% 49 Achievement% 41 Wizard Run 0 Options --------- ASCII 1 Keyboard 1 Movement Vi Keybinds 0 Fullscreen 1 Font 18/CogWide Map View 76x50 Tactical HUD 1 Map Filters NONE Filters LOW_CONTRAST(47,30,31)|SHIFT_HUE(1) Steam 1 RUN: b6ddc2ca-0ec0-4ab4-aa5b-ecb30299feac